bitfinex/quotes_BTCUSD_20251207
["timestamp","ask_amount","ask_price","bid_price","bid_amount"]
[1765148901657,0.00261287,89716.0,89715.0,0.05374017]
[1765148901892,0.00161287,89716.0,89715.0,0.05374017]
[1765148902101,0.00161287,89716.0,89715.0,0.05474017]
[1765148903166,0.03978516,89725.0,89715.0,0.05474017]
[1765148903167,0.06196966,89737.0,89715.0,0.14546017]
[1765148903408,0.02863,89737.0,89734.0,0.01114404]
[1765148903630,0.02777,89746.0,89740.0,0.0111433]
[1765148903842,0.01114268,89745.0,89739.0,0.01114342]
[1765148904053,0.02777,89746.0,89734.0,0.01114404]
[1765148904054,0.02863,89737.0,89734.0,0.01114404]
[1765148904259,0.01114379,89736.0,89733.0,0.01114417]
[1765148904466,0.07939367,89737.0,89733.0,0.01114417]
[1765148904681,0.04277367,89737.0,89733.0,0.01114417]
[1765148904881,0.01114491,89727.0,89723.0,0.01114541]
[1765148905288,0.01114491,89727.0,89722.0,0.01114553]
[1765148905289,0.02864,89724.0,89722.0,0.01114553]
[1765148905460,0.02864,89724.0,89722.0,0.047928]
[1765148905663,0.03662,89723.0,89722.0,0.047928]
[1765148905871,0.03662,89723.0,89713.0,0.22974196]
[1765148905872,0.0111464,89715.0,89712.0,0.01114678]
[1765148906085,0.05881599,89721.0,89713.0,0.22293313]
[1765148906266,0.01114603,89718.0,89714.0,0.01114653]
[1765148906608,0.23406783,89718.0,89715.0,0.05017267]
[1765148907018,0.23407456,89715.0,89712.0,0.00011817]
[1765148907256,0.03662,89716.0,89713.0,0.23407978]
[1765148907474,0.00161287,89718.0,89715.0,0.0111464]
[1765148907693,0.23567962,89718.0,89714.0,0.01114653]
[1765148907952,0.05592,89717.0,89714.0,0.01114653]
[1765148908147,0.00261287,89718.0,89715.0,0.33512597]
[1765148908845,0.01114553,89722.0,89718.0,0.01114603]
[1765148909200,0.01114529,89724.0,89719.0,0.01114591]
[1765148909491,0.01715649,89727.0,89723.0,0.01114541]
[1765148909797,0.01114504,89726.0,89722.0,0.01114553]
[1765148909944,0.01114516,89725.0,89721.0,0.01114566]
[1765148910288,0.001,89722.0,89721.0,0.01114566]
[1765148910526,0.001,89722.0,89720.0,0.08538201]
[1765148910704,0.01114603,89718.0,89715.0,0.0307]
[1765148910863,0.03662,89716.0,89715.0,0.07959748]
[1765148911437,0.01114578,89720.0,89717.0,0.01114615]
[1765148911638,0.25624948,89724.0,89717.0,0.01114615]
[1765148911639,0.01114541,89723.0,89717.0,0.01114615]
[1765148911840,0.01114553,89722.0,89718.0,0.01114603]
[1765148912056,0.01114566,89721.0,89716.0,0.01114628]
[1765148912239,0.23406124,89721.0,89716.0,0.03363318]
[1765148912440,0.01114578,89720.0,89716.0,0.01114628]
[1765148912959,0.01114578,89720.0,89715.0,0.26477215]
[1765148912960,0.05881599,89717.0,89715.0,0.0297]
[1765148913097,0.03662,89716.0,89715.0,0.0297]
[1765148913302,0.09254,89716.0,89715.0,0.0297]
[1765148913535,0.31546567,89716.0,89715.0,0.0297]
[1765148913737,0.3278547,89716.0,89715.0,0.0297]
[1765148913939,0.75115872,89716.0,89715.0,0.0297]
[1765148914142,0.77335471,89716.0,89715.0,0.0297]
[1765148914499,0.77535471,89716.0,89715.0,0.0297]
[1765148914707,0.75115872,89716.0,89715.0,0.0297]
[1765148914919,0.77335471,89716.0,89715.0,0.0297]
[1765148915224,0.45702972,89716.0,89715.0,0.0297]
[1765148915415,0.27698472,89716.0,89715.0,0.0297]
[1765148915630,0.26654567,89716.0,89715.0,0.0297]
[1765148915831,0.26754567,89716.0,89715.0,0.0297]
[1765148916242,0.3560924,89716.0,89715.0,0.0297]
[1765148916648,0.31646567,89716.0,89715.0,0.0297]
[1765148916893,0.31946567,89716.0,89715.0,0.0297]
[1765148918397,0.11873599,89716.0,89715.0,0.0297]
[1765148918740,0.34166166,89716.0,89715.0,0.0297]
[1765148920034,0.31946567,89716.0,89715.0,0.0297]
[1765148921157,0.3318547,89716.0,89715.0,0.0297]
[1765148921478,1.42696719,89716.0,89715.0,0.0297]
[1765148921678,1.58881612,89713.0,89712.0,0.00011817]
[1765148921898,1.63513065,89713.0,89712.0,0.00011817]
[1765148922106,1.68825065,89713.0,89712.0,0.00011817]
[1765148923047,1.68825065,89713.0,89674.0,0.22303008]
[1765148923048,0.01115075,89680.0,89674.0,0.22303008]
[1765148923255,0.01115075,89680.0,89677.0,0.01115113]
[1765148923256,0.00011793,89680.0,89677.0,0.01115113]
[1765148923470,0.0649,89675.0,89674.0,0.00161287]
[1765148924090,0.02781,89675.0,89674.0,0.00161287]
[1765148924725,0.00011793,89680.0,89678.0,0.22302013]
[1765148925154,0.00111793,89680.0,89677.0,0.01115113]
[1765148925377,0.00111793,89680.0,89678.0,0.24826008]
[1765148925578,0.00111793,89680.0,89679.0,0.03963]
[1765148925579,0.00011793,89680.0,89679.0,0.03963]
[1765148925793,0.00011793,89680.0,89679.0,0.00161287]
[1765148925997,0.00111793,89680.0,89679.0,0.04124287]
[1765148926411,0.00011793,89680.0,89679.0,0.04124287]
[1765148926621,0.00111793,89680.0,89679.0,0.05248588]
[1765148927042,0.00111793,89680.0,89679.0,0.04224287]
[1765148927753,0.00111793,89680.0,89679.0,0.11915628]
[1765148928306,0.00111793,89680.0,89679.0,0.24062287]
[1765148933043,0.00111793,89680.0,89679.0,0.62614586]
[1765148933244,0.00111793,89680.0,89679.0,0.64834984]
[1765148934289,0.00111793,89680.0,89679.0,0.64734984]
[1765148934461,0.00111793,89680.0,89679.0,0.65314586]
[1765148934663,0.00111793,89680.0,89679.0,0.7850549]
[1765148934869,0.00211793,89680.0,89679.0,0.7950549]
[1765148935325,0.00211793,89680.0,89679.0,0.77285092]
[1765148936858,0.00211793,89680.0,89679.0,0.71032793]
[1765148937688,0.00211793,89680.0,89679.0,0.65924793]
[1765148937945,0.00211793,89680.0,89679.0,0.71032793]
[1765148938169,0.00211793,89680.0,89679.0,0.83481512]
[1765148938337,0.00211793,89680.0,89679.0,0.7950549]
[1765148939811,0.00211793,89680.0,89679.0,0.77285092]
[1765148940190,0.00211793,89680.0,89679.0,0.38732793]
[1765148940337,0.00211793,89680.0,89679.0,0.33624793]
[1765148940659,0.00211793,89680.0,89679.0,0.38732793]
[1765148940865,0.00211793,89680.0,89679.0,0.40953191]
[1765148941437,0.00211793,89680.0,89679.0,0.38732793]
[1765148942321,0.00211793,89680.0,89679.0,0.7950549]
[1765148946142,0.22291494,89721.0,89679.0,0.7950549]
[1765148946143,0.01114541,89723.0,89717.0,0.01114615]
[1765148946350,0.02781,89728.0,89717.0,0.01114615]
[1765148946351,0.00011808,89720.0,89719.0,0.05927]
[1765148946756,0.00011808,89720.0,89719.0,0.11521]
[1765148946958,0.00011808,89720.0,89719.0,0.11682287]
[1765148948625,0.00011808,89720.0,89719.0,0.00161287]
[1765148948626,0.00511808,89720.0,89719.0,0.00161287]
[1765148948832,0.00511808,89720.0,89714.0,0.23407483]
[1765148948833,0.01114591,89719.0,89714.0,0.23407483]
[1765148949069,0.01114603,89718.0,89713.0,0.01114665]
[1765148949267,0.00511808,89720.0,89716.0,0.01114628]
[1765148949469,0.00011808,89720.0,89717.0,0.01114615]
[1765148949673,0.00011808,89720.0,89718.0,0.2229207]
[1765148949875,0.00411808,89720.0,89718.0,0.2229207]
[1765148950079,0.00011808,89720.0,89718.0,0.2229207]
[1765148950284,0.0377,89719.0,89717.0,0.01114615]
[1765148950493,0.0377,89719.0,89718.0,0.2229207]
[1765148950717,0.00111808,89720.0,89718.0,0.2229207]
[1765148950922,0.00011808,89720.0,89718.0,0.2229207]
[1765148951132,0.00011808,89720.0,89719.0,0.03951]
[1765148951345,0.00511808,89720.0,89719.0,0.09545]
[1765148951488,0.00511808,89720.0,89719.0,0.03951]
[1765148951657,0.00111808,89720.0,89719.0,0.03951]
[1765148951859,0.00511808,89720.0,89719.0,0.03951]
[1765148952086,0.00511808,89720.0,89719.0,0.12150583]
[1765148952292,0.00511808,89720.0,89719.0,0.17994583]
[1765148952492,0.00111808,89720.0,89719.0,0.17994583]
[1765148952703,0.00011808,89720.0,89719.0,0.1815587]
[1765148952997,0.00311808,89720.0,89719.0,0.0836087]
[1765148953192,0.00311808,89720.0,89719.0,0.00161287]
[1765148953416,0.00011808,89720.0,89719.0,0.00161287]
[1765148953793,0.00211808,89720.0,89719.0,0.00161287]
[1765148956054,0.00211808,89720.0,89719.0,0.03704287]
[1765148956251,0.00211808,89720.0,89719.0,0.09548287]
[1765148956691,0.00211808,89720.0,89719.0,0.00161287]
[1765148957878,0.00211808,89720.0,89719.0,0.03704287]
[1765148958085,0.00211808,89720.0,89719.0,0.09548287]
[1765148958283,0.00211808,89720.0,89719.0,0.03704287]
[1765148958459,0.00211808,89720.0,89719.0,0.09548287]
[1765148959947,0.00211808,89720.0,89719.0,0.00161287]
[1765148960482,0.00211808,89720.0,89718.0,0.3702207]
[1765148960483,0.31782616,89720.0,89718.0,0.1473]
[1765148960705,0.03528,89719.0,89718.0,0.1473]
[1765148960923,0.09279,89719.0,89718.0,0.1473]
[1765148962177,0.09279,89719.0,89625.0,0.24997241]
[1765148962178,0.01114727,89708.0,89703.0,0.23410348]
[1765148962382,0.23409504,89708.0,89703.0,0.23410348]
[1765148962539,0.02767,89707.0,89703.0,0.23410348]
[1765148963302,0.01114752,89706.0,89703.0,0.07467603]
[1765148963508,0.01114752,89706.0,89703.0,0.29763387]
[1765148964106,0.2637661,89707.0,89704.0,0.01114777]
[1765148964283,0.2637661,89707.0,89703.0,0.07467603]
[1765148964490,0.002,89707.0,89705.0,0.22295196]
[1765148964686,0.002,89707.0,89706.0,0.09242921]
[1765148965295,0.01114665,89713.0,89709.0,0.01114715]
[1765148965510,0.02767,89716.0,89713.0,0.01114665]
[1765148965686,0.01114678,89712.0,89709.0,0.01114715]
[1765148966027,0.01114653,89714.0,89711.0,0.0111469]
[1765148966183,0.02767,89716.0,89714.0,0.22293064]
[1765148966388,0.02767,89716.0,89713.0,0.01114665]
[1765148966593,0.02767,89716.0,89712.0,0.01114678]
[1765148966816,0.02767,89716.0,89713.0,0.01114665]
[1765148967017,0.002,89714.0,89713.0,0.01114665]
[1765148967246,0.002,89714.0,89712.0,0.23408141]
[1765148968149,0.03881628,89716.0,89712.0,0.23408141]
[1765148968373,0.01214653,89714.0,89710.0,0.01114702]
[1765148968552,0.001,89714.0,89711.0,0.0111469]
[1765148969284,0.001,89714.0,89711.0,0.23408278]
[1765148969489,0.001,89714.0,89711.0,0.23408389]
[1765148969892,0.001,89714.0,89712.0,0.22293359]
[1765148970250,0.04081628,89716.0,89712.0,0.22293359]
[1765148970251,0.02767,89716.0,89713.0,0.01114665]
[1765148970672,0.01114702,89710.0,89702.0,0.01114802]
[1765148970882,0.22294758,89708.0,89702.0,0.23410848]
[1765148971055,0.01114752,89706.0,89702.0,0.01114802]
[1765148971414,0.01114752,89706.0,89703.0,0.01114789]
[1765148971623,0.0111474,89707.0,89702.0,0.01114802]
[1765148971624,0.01114765,89705.0,89702.0,0.01114802]
[1765148971829,0.0111474,89707.0,89703.0,0.01114789]
[1765148972028,0.01114752,89706.0,89703.0,0.01114789]
[1765148972226,0.01214752,89706.0,89703.0,0.01114789]
[1765148972448,0.001,89706.0,89703.0,0.01114789]
[1765148972650,0.01114727,89708.0,89703.0,0.01114789]
[1765148972853,0.23408948,89710.0,89705.0,0.01114765]
[1765148973051,0.002,89707.0,89705.0,0.28516646]
[1765148973353,0.002,89707.0,89705.0,0.06221345]
[1765148973599,0.22295745,89704.0,89703.0,0.007]
[1765148973752,0.23411472,89700.0,89696.0,0.01114876]
[1765148974257,0.23411472,89700.0,89694.0,0.01114901]
[1765148974258,0.01114864,89697.0,89694.0,0.01114901]
[1765148974689,0.01114852,89698.0,89695.0,0.01114889]
[1765148975018,0.01114852,89698.0,89696.0,0.009]
[1765148975141,0.01114852,89698.0,89693.0,0.37028047]
[1765148975142,0.04642876,89696.0,89693.0,0.1473]
[1765148975344,0.03528,89694.0,89693.0,0.1473]
[1765148976000,0.09279,89694.0,89693.0,0.1473]
[1765148976393,0.23412274,89697.0,89694.0,0.01]
[1765148976597,0.23412274,89697.0,89693.0,0.1473]
[1765148976995,0.22297791,89695.0,89693.0,0.1563]
[1765148977259,0.03528,89694.0,89693.0,0.1473]
[1765148977414,0.11498599,89694.0,89693.0,0.1473]
[1765148977596,0.11598599,89694.0,89693.0,0.1473]
[1765148978013,0.11598599,89694.0,89693.0,0.1553]
[1765148978218,0.11498599,89694.0,89693.0,0.1553]
[1765148978580,0.11698599,89694.0,89693.0,0.1553]
[1765148978779,0.11698599,89694.0,89693.0,0.008]
[1765148979296,0.01115026,89684.0,89681.0,0.15845063]
[1765148979654,0.01115026,89684.0,89680.0,0.01115075]
[1765148979655,0.22301267,89681.0,89680.0,0.1473]
[1765148979810,0.23418057,89675.0,89672.0,0.1473]
[1765148980010,0.23418075,89675.0,89672.0,0.1473]
[1765148980214,0.22303257,89673.0,89672.0,0.1473]
[1765148980412,0.26185075,89675.0,89672.0,0.14769383]
[1765148980413,0.03882137,89675.0,89672.0,0.14769383]
[1765148981206,0.03882137,89675.0,89672.0,0.15569383]
[1765148981406,0.002,89673.0,89672.0,0.15569383]
[1765148981631,0.03728,89673.0,89672.0,0.15569383]
[1765148982057,0.03528,89673.0,89672.0,0.15569383]
[1765148982410,0.03528,89673.0,89672.0,0.14769383]
[1765148982811,0.03528,89673.0,89672.0,0.15569383]
[1765148983018,0.03528,89673.0,89672.0,0.14769383]
[1765148983421,0.03528,89673.0,89672.0,0.15569383]
[1765148983657,0.09082,89673.0,89672.0,0.00839383]
[1765148984052,0.43601599,89673.0,89672.0,0.00839383]
[1765148984249,0.43701599,89673.0,89672.0,0.00839383]
[1765148984890,0.43601599,89673.0,89672.0,0.00839383]
[1765148985063,0.43901599,89673.0,89672.0,0.00839383]
[1765148985438,0.64621722,89673.0,89672.0,0.00039383]
[1765148985818,0.64621722,89673.0,89672.0,0.00439383]
[1765148986428,0.65661313,89673.0,89672.0,0.00439383]
[1765148986633,0.65661313,89673.0,89672.0,0.00039383]
[1765148986826,0.65661313,89673.0,89672.0,0.00139383]
[1765148987858,0.65361313,89673.0,89672.0,0.00139383]
[1765148988267,0.65661313,89673.0,89672.0,0.00139383]
[1765148993683,0.62402123,89673.0,89672.0,0.00139383]
[1765148993846,0.64621722,89673.0,89672.0,0.00139383]
[1765148994290,0.62402123,89673.0,89672.0,0.00139383]
[1765148994435,0.63641026,89673.0,89672.0,0.00139383]
[1765148994646,0.65860625,89673.0,89672.0,0.00139383]
[1765148995247,0.64621722,89673.0,89672.0,0.00139383]
[1765148997409,0.64621722,89673.0,89621.0,0.1473]
[1765148997410,0.22313708,89631.0,89621.0,0.1473]
[1765148997621,0.25699708,89631.0,89630.0,0.0019308]
[1765148997856,0.31253708,89631.0,89630.0,0.0019308]
[1765148998307,0.31253708,89631.0,89630.0,0.00031793]
[1765148998908,0.31353708,89631.0,89630.0,0.01031793]
[1765148999176,0.0904,89631.0,89630.0,0.02231793]
[1765148999596,0.11259599,89631.0,89630.0,0.02231793]
[1765149000024,0.0894,89631.0,89630.0,0.01231793]
[1765149000462,1.20238299,89631.0,89630.0,0.01431793]
[1765149000705,1.20238299,89631.0,89630.0,0.00231793]
[1765149000919,1.20238299,89631.0,89630.0,0.00031793]
[1765149001151,1.21276093,89631.0,89630.0,0.00431793]
[1765149001372,1.21276093,89631.0,89630.0,0.00031793]
[1765149001373,1.21376093,89631.0,89630.0,0.00031793]
[1765149001598,1.21576093,89631.0,89630.0,0.00031793]
[1765149001850,1.21276093,89631.0,89630.0,0.00031793]
[1765149002074,1.21776093,89631.0,89630.0,0.00131793]
[1765149002279,0.2577,89631.0,89630.0,0.00131793]
[1765149002483,0.27189599,89631.0,89630.0,0.00131793]
[1765149002942,0.25963899,89631.0,89630.0,0.00131793]
[1765149003393,0.25463899,89631.0,89630.0,0.00031793]
[1765149003603,0.25863899,89631.0,89630.0,0.00131793]
[1765149003819,0.11859599,89631.0,89630.0,0.00131793]
[1765149003992,0.22726499,89631.0,89630.0,0.00031793]
[1765149004256,0.115669,89631.0,89630.0,0.0019308]
[1765149004466,0.31630708,89631.0,89630.0,0.0019308]
[1765149004685,0.26424708,89631.0,89630.0,0.0019308]
[1765149005138,0.22313708,89631.0,89630.0,0.0019308]
[1765149005346,0.25824708,89631.0,89630.0,0.0069308]
[1765149005623,0.03511,89631.0,89630.0,0.0069308]
[1765149006048,0.08717,89631.0,89630.0,0.0069308]
[1765149006468,0.08817,89631.0,89630.0,0.0069308]
[1765149006677,0.03611,89631.0,89630.0,0.0069308]
[1765149008592,0.001,89631.0,89630.0,0.0069308]
[1765149008733,0.001,89631.0,89630.0,0.0927608]
[1765149008928,0.001,89631.0,89630.0,0.0414608]
[1765149009154,0.001,89631.0,89630.0,0.11496478]
[1765149009981,0.0178,89638.0,89635.0,0.01115635]
[1765149010257,0.0178,89638.0,89637.0,0.06087]
[1765149010825,0.0178,89638.0,89637.0,0.06248287]
[1765149011023,0.0188,89638.0,89637.0,0.06248287]
[1765149011228,0.001,89638.0,89637.0,0.19436295]
[1765149011458,0.001,89638.0,89637.0,0.21656693]
[1765149011772,0.001,89638.0,89637.0,0.28308992]
[1765149012109,0.001,89638.0,89637.0,0.60608992]
[1765149012312,0.0178,89659.0,89656.0,0.23422834]
[1765149012511,0.0178,89659.0,89654.0,0.01115399]
[1765149012721,0.0178,89659.0,89655.0,0.01115386]
[1765149012722,0.01115349,89658.0,89655.0,0.01115386]
[1765149013120,0.0178,89659.0,89656.0,0.01115374]
[1765149013322,0.0178,89659.0,89657.0,0.22307237]
[1765149013532,0.0178,89659.0,89658.0,0.03351]
[1765149014532,0.0178,89659.0,89658.0,0.03362793]
[1765149014737,0.01115137,89675.0,89672.0,0.01115175]
[1765149014949,0.0111515,89674.0,89671.0,0.01115187]
[1765149015149,0.03586137,89675.0,89670.0,0.23419203]
[1765149015349,0.02471,89675.0,89672.0,0.01115175]
[1765149015553,0.02471,89675.0,89672.0,0.23418641]
[1765149015773,0.02471,89675.0,89672.0,0.01115175]
[1765149016121,0.03502,89673.0,89671.0,0.23418691]
[1765149016385,0.03786137,89675.0,89672.0,0.01115175]
[1765149016631,0.04386137,89675.0,89672.0,0.01115175]
[1765149016782,0.03071,89675.0,89673.0,0.22303257]
[1765149017023,0.01115113,89677.0,89674.0,0.0111515]
[1765149017780,0.01115162,89673.0,89668.0,0.23419496]
[1765149017982,0.01115175,89672.0,89668.0,0.23419726]
[1765149018184,0.02471,89675.0,89672.0,0.01115175]
[1765149018385,0.01115162,89673.0,89669.0,0.01115212]
[1765149018594,0.01115162,89673.0,89670.0,0.011152]
[1765149018810,0.0111515,89674.0,89670.0,0.011152]
[1765149019050,0.02671,89675.0,89672.0,0.23418681]
[1765149019273,0.0178,89679.0,89677.0,0.22302169]
[1765149020623,0.0178,89679.0,89677.0,0.23881169]
[1765149020833,0.0218,89679.0,89677.0,0.23881169]
[1765149021829,0.0238,89679.0,89677.0,0.23881169]
[1765149022155,0.006,89679.0,89678.0,0.03351]
[1765149022438,0.006,89679.0,89678.0,0.08609]
[1765149022997,0.01702,89692.0,89689.0,0.01114963]
[1765149023227,0.01114864,89697.0,89693.0,0.01114914]
[1765149023382,0.01114827,89700.0,89696.0,0.01114876]
[1765149023383,0.0178,89699.0,89696.0,0.01114876]
[1765149023582,0.01114852,89698.0,89693.0,0.01114914]
[1765149023828,0.01114852,89698.0,89690.0,0.2867198]
[1765149023829,0.01114876,89696.0,89692.0,0.01114926]
[1765149024179,0.01154252,89696.0,89692.0,0.01114926]
[1765149024886,0.01154252,89696.0,89677.0,0.01115113]
[1765149024887,0.0111505,89682.0,89677.0,0.01115113]
[1765149025128,0.01115001,89686.0,89682.0,0.0111505]
[1765149025442,0.0188,89679.0,89676.0,0.01115125]
[1765149025642,0.24181765,89679.0,89676.0,0.01115125]
[1765149025802,0.23417447,89677.0,89671.0,0.01115187]
[1765149026005,0.0111515,89674.0,89669.0,0.01115212]
[1765149026325,0.011152,89670.0,89665.0,0.01115262]
[1765149026513,0.01115175,89672.0,89666.0,0.01115249]
[1765149026704,0.01115175,89672.0,89669.0,0.01115212]
[1765149026910,0.011151,89678.0,89669.0,0.01115212]
[1765149027108,0.01115162,89673.0,89669.0,0.02615212]
[1765149027317,0.01115162,89673.0,89669.0,0.01115212]
[1765149027972,0.01115162,89673.0,89669.0,0.01715212]
[1765149028107,0.01115175,89672.0,89669.0,0.006]
[1765149028323,0.25806003,89670.0,89669.0,0.006]
[1765149028660,0.03502,89670.0,89667.0,0.01115237]
[1765149028873,0.03502,89670.0,89669.0,0.001]
[1765149029103,0.01115162,89673.0,89669.0,0.001]
[1765149029104,0.01115162,89673.0,89669.0,0.01215212]
[1765149029294,0.01115137,89675.0,89671.0,0.01115187]
[1765149029502,0.02895113,89677.0,89673.0,0.01115162]
[1765149029733,0.01115125,89676.0,89673.0,0.01115162]
[1765149030372,0.001,89675.0,89674.0,0.0111515]
[1765149030587,0.02895113,89677.0,89674.0,0.0111515]
[1765149031005,0.0178,89677.0,89674.0,0.0111515]
[1765149031185,0.0178,89677.0,89676.0,0.22302511]
[1765149031810,0.0188,89677.0,89676.0,0.22302511]
[1765149032458,0.0178,89677.0,89676.0,0.25653511]
[1765149032576,0.0178,89677.0,89676.0,0.31311511]
[1765149032781,0.0178,89677.0,89676.0,0.22702511]
[1765149032987,0.05282,89677.0,89676.0,0.004]
[1765149033390,0.0178,89677.0,89676.0,0.26053511]
[1765149033606,0.00039376,89696.0,89692.0,0.22298532]
[1765149033810,0.00039376,89696.0,89693.0,0.01114914]
[1765149033811,0.0178,89694.0,89693.0,0.01114914]
[1765149034058,0.0178,89694.0,89693.0,0.03772914]
[1765149034460,0.0178,89694.0,89693.0,0.07285201]
[1765149034661,0.00039376,89696.0,89695.0,0.02220398]
[1765149034890,0.00039376,89696.0,89695.0,0.05732685]
[1765149035018,0.00039376,89696.0,89695.0,0.10990685]
[1765149036128,0.00039376,89696.0,89695.0,0.11090685]
[1765149036323,0.00039376,89696.0,89695.0,0.11390685]
[1765149036774,0.00039376,89696.0,89695.0,0.2204946]
[1765149039606,0.00039376,89696.0,89695.0,0.60601759]
[1765149040240,0.00039376,89696.0,89695.0,0.60501759]
[1765149040655,0.00039376,89696.0,89695.0,0.60701759]
[1765149041081,0.00039376,89696.0,89695.0,0.60401759]
[1765149041471,0.00039376,89696.0,89695.0,0.60601759]
[1765149042289,0.00039376,89696.0,89695.0,0.62304882]
[1765149042739,0.00039376,89696.0,89695.0,0.60401759]
[1765149043143,0.00039376,89696.0,89695.0,0.63001759]
[1765149043711,0.00139376,89696.0,89695.0,0.64201759]
[1765149044410,0.00139376,89696.0,89695.0,0.63001759]
[1765149044411,0.00039376,89696.0,89695.0,0.63001759]
[1765149044609,0.00039376,89696.0,89695.0,0.60201759]
[1765149044810,0.00139376,89696.0,89695.0,0.61201759]
[1765149045034,0.00139376,89696.0,89695.0,0.63901759]
[1765149045712,0.00139376,89696.0,89695.0,0.61201759]
[1765149046168,0.00139376,89696.0,89695.0,0.63401759]
[1765149047397,0.01776,89739.0,89736.0,0.01114379]
[1765149047654,0.01776,89739.0,89738.0,0.04491]
[1765149047655,0.00011812,89739.0,89738.0,0.04491]
[1765149047831,0.00011812,89739.0,89738.0,0.09488]
[1765149048641,0.01211812,89739.0,89738.0,0.09488]
[1765149048838,0.00011812,89739.0,89738.0,0.11708398]
[1765149049039,0.00011812,89739.0,89738.0,0.20303652]
[1765149049205,0.00511812,89739.0,89738.0,0.20303652]
[1765149049606,0.00911812,89739.0,89738.0,0.20464939]
[1765149050150,0.00511812,89739.0,89738.0,0.10109541]
[1765149050357,0.00711812,89739.0,89738.0,0.18244541]
[1765149051058,0.00711812,89739.0,89738.0,0.13247541]
[1765149051600,0.00711812,89739.0,89738.0,0.18244541]
[1765149052226,0.00711812,89739.0,89738.0,0.20464939]
[1765149052795,0.00711812,89739.0,89738.0,0.18244541]
[1765149054083,0.00711812,89739.0,89738.0,0.20464939]
[1765149055352,0.00711812,89739.0,89738.0,0.26717238]
[1765149055495,0.00711812,89739.0,89738.0,0.73747238]
[1765149056096,0.00511812,89739.0,89738.0,0.73747238]
[1765149056495,0.00611812,89739.0,89738.0,0.73747238]
[1765149056850,0.00011812,89739.0,89738.0,0.75450361]
[1765149057237,0.00011812,89739.0,89738.0,0.76450361]
[1765149057559,0.00011812,89739.0,89738.0,0.75450361]
[1765149057767,0.00011812,89739.0,89738.0,0.77250361]
[1765149057981,0.00011812,89739.0,89738.0,0.62520361]
[1765149058280,0.0004,89760.0,89759.0,0.24502286]
[1765149058400,0.0004,89760.0,89759.0,0.30295573]
[1765149058603,0.0004,89760.0,89759.0,0.35050573]
[1765149059332,0.0004,89760.0,89759.0,0.41302872]
[1765149060119,0.0014,89760.0,89759.0,0.42102872]
[1765149060375,0.0014,89760.0,89759.0,0.53673378]
[1765149061503,0.00529553,89770.0,89769.0,0.60831705]
[1765149061702,0.00529553,89770.0,89769.0,0.6648839]
[1765149061703,0.00541357,89770.0,89769.0,0.6648839]
[1765149061904,0.00541357,89770.0,89769.0,0.7124339]
[1765149066202,0.00541357,89770.0,89769.0,0.25715693]
[1765149066411,0.00541357,89770.0,89769.0,0.32966096]
[1765149066619,0.00541357,89770.0,89769.0,0.22279406]
[1765149066852,0.00541357,89770.0,89767.0,0.23393897]
[1765149067057,0.00541357,89770.0,89764.0,0.01114032]
[1765149067058,0.04226982,89768.0,89764.0,0.01114032]
[1765149067277,0.04226982,89768.0,89748.0,0.04755]
[1765149067278,0.01114032,89764.0,89759.0,0.01114094]
[1765149067488,0.01114094,89759.0,89753.0,0.03471168]
[1765149067667,0.04227094,89759.0,89754.0,0.01114156]
[1765149067864,0.04227094,89759.0,89755.0,0.01114144]
[1765149068122,0.04227094,89759.0,89756.0,0.01114131]
[1765149068318,0.01114119,89757.0,89754.0,0.01114156]
[1765149068542,0.01114156,89754.0,89751.0,0.01114193]
[1765149068756,0.26510321,89754.0,89750.0,0.01114206]
[1765149068969,0.02157,89751.0,89750.0,0.01114206]
[1765149069398,0.01114255,89746.0,89737.0,0.2228735]
[1765149069601,0.22285786,89744.0,89737.0,0.01114367]
[1765149069808,0.01114268,89745.0,89741.0,0.01114317]
[1765149070013,0.23399515,89746.0,89741.0,0.01114317]
[1765149070014,0.23399515,89746.0,89742.0,0.01114305]
[1765149070426,0.01114255,89746.0,89743.0,0.01114293]
[1765149070634,0.01414255,89746.0,89743.0,0.01114293]
[1765149070845,0.01114218,89749.0,89746.0,0.01114255]
[1765149071052,0.01114218,89749.0,89744.0,0.22285612]
[1765149071053,0.0111423,89748.0,89744.0,0.0111428]
[1765149071866,0.01114293,89743.0,89739.0,0.01114342]
[1765149072285,0.0131428,89744.0,89740.0,0.0111433]
[1765149072489,0.0111428,89744.0,89740.0,0.0111433]
[1765149072635,0.0111428,89744.0,89741.0,0.01114317]
[1765149072839,0.03123,89741.0,89736.0,0.01114379]
[1765149073064,0.06084293,89743.0,89731.0,0.01114442]
[1765149073065,0.01114392,89735.0,89731.0,0.01114442]
[1765149073268,0.01114404,89734.0,89731.0,0.00011812]
[1765149073481,0.03123,89732.0,89731.0,0.00011812]
[1765149074347,0.25411592,89732.0,89731.0,0.00011812]
[1765149075401,0.25711592,89732.0,89731.0,0.00011812]
[1765149075565,0.003,89732.0,89731.0,0.00011812]
[1765149075764,0.22288375,89733.0,89731.0,0.00011812]
[1765149075986,0.008,89732.0,89731.0,0.00011812]
[1765149076368,0.01,89732.0,89731.0,0.00011812]
[1765149077301,0.02857,89732.0,89731.0,0.00011812]
[1765149078073,0.1095,89732.0,89731.0,0.00011812]
[1765149078277,0.755613,89732.0,89731.0,0.00011812]
[1765149078468,0.40960499,89732.0,89731.0,0.00011812]
[1765149078678,0.37552299,89732.0,89731.0,0.00011812]
[1765149078881,0.36552299,89732.0,89731.0,0.00011812]
[1765149079116,0.37652299,89732.0,89731.0,0.00011812]
[1765149081151,0.39428299,89732.0,89731.0,0.00011812]
[1765149086343,0.71728299,89732.0,89731.0,0.00011812]
[1765149087428,0.71728299,89732.0,89693.0,0.0233]
[1765149087429,0.01114852,89698.0,89694.0,0.01114901]
[1765149087659,0.01114852,89698.0,89689.0,0.01114963]
[1765149087660,0.04929,89694.0,89687.0,0.01114988]
[1765149087873,0.01817793,89694.0,89693.0,0.22298284]
[1765149088042,0.01817793,89694.0,89691.0,0.23413556]
[1765149088238,0.01817793,89694.0,89692.0,0.22298302]
[1765149089092,0.00111793,89694.0,89693.0,0.018]
[1765149089235,0.00011793,89694.0,89692.0,0.22398302]
[1765149089636,0.00111793,89694.0,89692.0,0.24198302]
[1765149090042,0.00111793,89694.0,89693.0,0.1566623]
[1765149090248,0.00111793,89694.0,89693.0,0.08141287]
[1765149090450,0.00111793,89694.0,89693.0,0.50043508]
[1765149090677,0.00011793,89694.0,89693.0,0.48913984]
[1765149090908,0.00011793,89694.0,89693.0,0.49013984]
[1765149091162,0.00211793,89694.0,89693.0,0.51213984]
[1765149091438,0.00211793,89694.0,89693.0,0.86988669]
[1765149091945,0.01776,89730.0,89729.0,0.22289337]
[1765149092284,0.01787806,89730.0,89729.0,0.27181337]
[1765149092506,0.09880806,89730.0,89721.0,0.01114566]